bitfinex-derivatives/quotes_BTCF0:USTF0_20240910
["timestamp","ask_amount","ask_price","bid_price","bid_amount"]
[1725982094955,0.087478,57154.0,57153.0,0.88]
[1725982096053,0.087478,57154.0,57153.0,0.96748]
[1725982096444,0.18,57156.0,57155.0,0.087477]
[1725982096651,0.18,57156.0,57155.0,0.088277]
[1725982096956,0.136771,57159.0,57158.0,0.087472]
[1725982097153,0.16513394,57159.0,57158.0,0.088272]
[1725982097351,0.02836294,57159.0,57158.0,0.088272]
[1725982097550,0.11582831,57161.0,57160.0,0.087469]
[1725982097759,0.11582831,57161.0,57160.0,0.088269]
[1725982097957,0.11582831,57161.0,57160.0,0.0008]
[1725982098750,0.11582831,57161.0,57160.0,0.0018]
[1725982099450,0.11582831,57161.0,57160.0,0.01424928]
[1725982100550,0.11582794,57161.0,57160.0,0.01424928]
[1725982100950,0.11582794,57161.0,57160.0,0.10171828]
[1725982102066,0.087467,57161.0,57160.0,0.10171828]
[1725982102357,0.20329384,57161.0,57160.0,0.01424928]
[1725982102557,0.174934,57161.0,57160.0,0.01424928]
[1725982102757,0.174934,57161.0,57160.0,0.0018]
[1725982102958,0.20329416,57161.0,57160.0,0.0018]
[1725982103752,0.30772916,57161.0,57160.0,0.0018]
[1725982104256,0.20329416,57161.0,57160.0,0.0018]
[1725982105657,0.38329416,57161.0,57160.0,0.0018]
[1725982105961,0.38329542,57161.0,57160.0,0.0018]
[1725982106264,0.48772777,57161.0,57160.0,0.0018]
[1725982107366,0.38329542,57161.0,57160.0,0.0018]
[1725982107768,0.48781957,57161.0,57160.0,0.0018]
[1725982107966,0.40035257,57161.0,57160.0,0.0018]
[1725982108168,0.02836142,57161.0,57160.0,0.1818]
[1725982108357,0.087465,57163.0,57161.0,0.087466]
[1725982108559,0.087465,57163.0,57162.0,0.0008]
[1725982108757,0.115825,57163.0,57162.0,0.0008]
[1725982109956,0.11582642,57163.0,57162.0,0.0008]
[1725982110961,0.18,57164.0,57163.0,0.087464]
[1725982111272,0.20835981,57164.0,57163.0,0.088264]
[1725982111565,0.29582281,57164.0,57163.0,0.0008]
[1725982111762,0.02835981,57164.0,57163.0,0.088264]
[1725982111966,0.10454562,57166.0,57165.0,0.087461]
[1725982112161,0.10454562,57166.0,57163.0,0.0008]
[1725982112162,0.12221021,57170.0,57167.0,0.087458]
[1725982112370,0.11581384,57169.0,57168.0,0.087457]
[1725982112754,0.11581384,57169.0,57165.0,0.0008]
[1725982112755,0.087458,57168.0,57165.0,0.0008]
[1725982113068,0.08746,57166.0,57165.0,0.0008]
[1725982113261,0.11581884,57166.0,57165.0,0.0008]
[1725982114156,0.1687359,57166.0,57165.0,0.0008]
[1725982114662,0.08746,57166.0,57165.0,0.0008]
[1725982114863,0.16866692,57166.0,57165.0,0.0018]
[1725982115061,0.25612692,57166.0,57165.0,0.0018]
[1725982115271,0.087476,57156.0,57154.0,0.136678]
[1725982115576,0.10462938,57156.0,57154.0,0.0492]
[1725982115772,0.10462938,57156.0,57155.0,0.087477]
[1725982116572,0.02836148,57156.0,57155.0,0.087477]
[1725982116760,0.11583348,57158.0,57155.0,0.087477]
[1725982116957,0.02836148,57157.0,57155.0,0.087477]
[1725982117372,0.001,57156.0,57155.0,0.087477]
[1725982117573,0.02936148,57156.0,57155.0,0.087477]
[1725982118065,0.02836148,57156.0,57155.0,0.087477]
[1725982118271,0.02936148,57157.0,57155.0,0.088477]
[1725982118567,0.02836148,57156.0,57155.0,0.088477]
[1725982119272,0.001,57157.0,57156.0,0.087475]
[1725982119468,0.08207186,57157.0,57156.0,0.088275]
[1725982119669,0.08208172,57157.0,57156.0,0.088275]
[1725982120071,0.13317996,57157.0,57156.0,0.088275]
[1725982120570,0.29583494,57157.0,57156.0,0.0008]
[1725982120778,0.43599061,57157.0,57156.0,0.0008]
[1725982121076,0.43699061,57157.0,57156.0,0.0018]
[1725982121481,1.62299318,57157.0,57156.0,0.0018]
[1725982121667,0.087492,57146.0,57143.0,0.0475]
[1725982121864,0.18,57144.0,57143.0,0.134994]
[1725982122069,0.267493,57144.0,57143.0,0.89227604]
[1725982122278,0.29585892,57144.0,57143.0,0.89227604]
[1725982122871,0.48819514,57144.0,57143.0,0.88]
[1725982123063,0.29585892,57144.0,57143.0,0.88]
[1725982123267,0.40068771,57144.0,57143.0,0.88]
[1725982123465,0.1331643,57144.0,57143.0,0.967495]
[1725982123666,0.02836592,57144.0,57143.0,0.967495]
[1725982123972,0.267493,57144.0,57143.0,0.967495]
[1725982124271,0.4006573,57144.0,57143.0,0.967495]
[1725982124471,0.4006573,57144.0,57143.0,0.88]
[1725982124673,0.29585892,57144.0,57143.0,0.88]
[1725982125174,0.4006573,57144.0,57143.0,0.88]
[1725982125366,0.4036573,57144.0,57143.0,0.881]
[1725982125572,0.29885892,57144.0,57143.0,0.881]
[1725982127273,0.4026573,57144.0,57143.0,0.881]
[1725982127469,0.29785892,57144.0,57143.0,0.881]
[1725982128378,0.21036592,57144.0,57143.0,0.881]
[1725982128573,0.002,57144.0,57143.0,0.968495]
[1725982129086,0.089493,57144.0,57143.0,0.881]
[1725982129277,0.11786167,57144.0,57143.0,0.881]
[1725982131275,0.002,57144.0,57143.0,1.05599]
[1725982131576,0.002,57144.0,57143.0,0.968495]
[1725982131784,0.002,57144.0,57143.0,1.05599]
[1725982132080,0.19227538,57155.0,57146.0,0.08749]
[1725982132293,0.02836402,57154.0,57153.0,0.08748]
[1725982132578,0.37227238,57157.0,57149.0,0.0489]
[1725982132771,0.087478,57155.0,57149.0,0.0489]
[1725982133077,0.267484,57150.0,57149.0,0.0489]
[1725982133274,0.267484,57150.0,57149.0,0.136386]
[1725982133873,0.28479838,57153.0,57149.0,0.06120993]
[1725982134079,0.02836466,57152.0,57151.0,0.087483]
[1725982134383,0.087479,57154.0,57149.0,0.06120993]
[1725982134678,0.10479838,57157.0,57153.0,0.0008]
[1725982134882,0.10479838,57157.0,57156.0,0.0008]
[1725982135082,0.02836272,57157.0,57156.0,0.0008]
[1725982135468,0.02836272,57157.0,57156.0,0.088275]
[1725982135469,0.11583672,57157.0,57156.0,0.088275]
[1725982135676,0.02836272,57157.0,57156.0,0.088275]
[1725982135883,0.11583539,57158.0,57157.0,0.087473]
[1725982136184,0.11583539,57158.0,57157.0,0.088273]
[1725982136383,0.02836239,57158.0,57157.0,0.088273]
[1725982136579,0.087467,57161.0,57160.0,0.087469]
[1725982136774,0.02836102,57161.0,57160.0,0.087469]
[1725982137079,0.10639838,57162.0,57161.0,0.087467]
[1725982137080,0.0016,57162.0,57161.0,0.087467]
[1725982137284,0.0016,57162.0,57161.0,0.088267]
[1725982137480,0.0016,57162.0,57161.0,0.968267]
[1725982137687,0.0016,57162.0,57161.0,1.626874]
[1725982138071,0.0016,57162.0,57161.0,1.539407]
[1725982138273,0.10479838,57172.0,57171.0,0.087452]
[1725982138479,0.02835647,57172.0,57171.0,0.088252]
[1725982139081,0.11580747,57172.0,57171.0,0.088252]
[1725982139286,0.29580747,57172.0,57171.0,0.088252]
[1725982139591,0.087451,57172.0,57171.0,0.0008]
[1725982139887,0.087451,57172.0,57171.0,0.01335245]
[1725982140079,0.087451,57172.0,57171.0,0.0008]
[1725982140878,0.087451,57172.0,57171.0,0.0018]
[1725982141383,0.087445,57176.0,57171.0,0.0018]
[1725982141585,0.087445,57176.0,57175.0,0.0008]
[1725982141787,0.11579888,57176.0,57175.0,0.0008]
[1725982141988,0.087445,57176.0,57175.0,0.0008]
[1725982142786,0.087445,57176.0,57175.0,0.088246]
[1725982143789,0.087445,57176.0,57175.0,0.0008]
[1725982143987,0.267445,57176.0,57175.0,0.0008]
[1725982144799,0.354889,57176.0,57175.0,0.0008]
[1725982145081,0.354889,57176.0,57155.0,0.267475]
[1725982145082,0.08746,57166.0,57157.0,0.0482]
[1725982145276,0.087462,57165.0,57164.0,0.087462]
[1725982146683,0.087465,57163.0,57161.0,0.938284]
[1725982146986,0.267466,57162.0,57161.0,0.891984]
[1725982147697,0.0473,57171.0,57161.0,0.891984]
[1725982147887,0.0473,57171.0,57165.0,0.08746]
[1725982147888,0.087457,57168.0,57165.0,0.08746]
[1725982148289,0.087458,57167.0,57165.0,0.08746]
[1725982148485,0.134753,57171.0,57161.0,1.02745]
[1725982148486,0.087464,57163.0,57161.0,1.02745]
[1725982148793,0.087464,57163.0,57162.0,0.087466]
[1725982149092,0.087466,57162.0,57161.0,0.891984]
[1725982149591,0.087466,57162.0,57161.0,0.88]
[1725982149798,0.01225553,57163.0,57158.0,0.01223103]
[1725982150095,0.01225553,57163.0,57142.0,0.5009]
[1725982150096,0.087486,57149.0,57146.0,0.087489]
[1725982150288,0.18,57147.0,57146.0,0.087489]
[1725982150789,0.18,57147.0,57146.0,0.967489]
[1725982150992,0.087489,57147.0,57146.0,0.967489]
[1725982151184,0.18,57151.0,57146.0,0.88]
[1725982151185,0.267484,57151.0,57146.0,0.88]
[1725982151395,0.087485,57150.0,57148.0,0.087487]
[1725982151591,0.087486,57149.0,57148.0,0.087487]
[1725982152096,0.18,57151.0,57150.0,0.087484]
[1725982152392,0.087483,57151.0,57150.0,0.088284]
[1725982152589,0.087483,57151.0,57150.0,0.0008]
[1725982154297,0.267478,57155.0,57150.0,0.0008]
[1725982154497,0.18,57159.0,57156.0,0.087475]
[1725982154794,0.18,57159.0,57154.0,0.088278]
[1725982154999,0.087472,57158.0,57156.0,0.087475]
[1725982155182,0.18,57159.0,57156.0,0.087475]
[1725982155389,0.087477,57155.0,57154.0,0.0008]
[1725982155784,0.08747,57160.0,57159.0,0.087469]
[1725982155991,0.08747,57160.0,57159.0,0.088269]
[1725982156392,0.15129838,57166.0,57162.0,0.087464]
[1725982156393,0.087463,57164.0,57162.0,0.087464]
[1725982156591,0.087463,57164.0,57159.0,0.0008]
[1725982156592,0.087463,57164.0,57163.0,0.087464]
[1725982156896,0.087463,57164.0,57163.0,0.0008]
[1725982157605,0.174927,57164.0,57163.0,0.0008]
[1725982158099,0.262391,57164.0,57163.0,0.0008]
[1725982158295,0.087477,57155.0,57154.0,0.01300568]
[1725982158492,0.354954,57155.0,57154.0,0.0008]
[1725982159096,0.267477,57155.0,57154.0,0.0008]
[1725982159504,0.10479838,57165.0,57154.0,1.12568]
[1725982159700,0.02836178,57164.0,57155.0,0.2284]
[1725982159898,0.18,57163.0,57155.0,0.0484]
[1725982160098,0.087462,57165.0,57155.0,0.0484]
[1725982160099,0.087475,57156.0,57155.0,0.0484]
[1725982160403,0.087475,57156.0,57151.0,0.09954587]
[1725982160404,0.087481,57152.0,57151.0,0.09954587]
[1725982160588,0.087481,57152.0,57144.0,0.0484]
[1725982160589,0.18,57152.0,57144.0,0.0484]
[1725982160799,0.18,57147.0,57135.0,0.05209711]
[1725982161003,0.096,57155.0,57131.0,0.0482]
[1725982161004,0.18,57138.0,57131.0,0.0482]
[1725982161207,0.18,57138.0,57132.0,0.88]
[1725982161401,0.3259,57149.0,57132.0,0.967511]
[1725982161402,0.18,57134.0,57132.0,0.967511]
[1725982161605,0.267509,57134.0,57132.0,0.967511]
[1725982161896,0.08751,57133.0,57128.0,0.087518]
[1725982162092,0.18,57130.0,57129.0,0.087516]
[1725982162500,0.18,57134.0,57132.0,0.087511]
[1725982162703,0.18,57134.0,57133.0,0.0008]
[1725982163997,0.267509,57134.0,57133.0,0.0008]
[1725982165997,0.18,57138.0,57133.0,0.0008]
[1725982166205,0.18,57141.0,57133.0,0.0008]
[1725982166411,0.18,57141.0,57140.0,0.0008]
[1725982166994,0.267498,57141.0,57140.0,0.8808]
[1725982167203,0.27957513,57145.0,57142.0,0.087496]
[1725982167509,0.267493,57145.0,57144.0,0.0008]
[1725982169495,0.267493,57145.0,57144.0,0.0018]
[1725982170199,0.267493,57145.0,57144.0,0.0008]
[1725982170395,0.267493,57145.0,57144.0,0.0018]
[1725982171010,0.267493,57145.0,57144.0,0.0008]
[1725982171201,0.267493,57145.0,57144.0,0.0018]
[1725982172117,0.087498,57141.0,57121.0,0.092328]
[1725982172408,0.087503,57138.0,57135.0,0.087506]
[1725982172609,0.087503,57138.0,57137.0,0.087504]
[1725982172804,0.18,57141.0,57129.0,0.18]
[1725982173011,0.087497,57142.0,57140.0,0.088299]
[1725982173308,0.087497,57142.0,57141.0,0.967498]
[1725982173495,0.18,57144.0,57142.0,0.087496]
[1725982173703,0.087496,57142.0,57141.0,0.88]
[1725982174508,0.18,57144.0,57141.0,0.88]
[1725982174699,0.18,57148.0,57143.0,0.0004]
[1725982174902,0.18,57148.0,57147.0,0.0004]
[1725982175099,0.08749,57146.0,57143.0,0.0004]
[1725982175299,0.267893,57144.0,57143.0,0.0004]
[1725982175600,0.267893,57144.0,57126.0,0.0041]
[1725982175807,0.18,57131.0,57130.0,0.087515]
[1725982176104,0.18,57134.0,57133.0,0.08751]
[1725982176313,0.18,57134.0,57133.0,0.08791]
[1725982176907,0.18,57134.0,57133.0,0.08751]
[1725982177505,0.18,57134.0,57133.0,0.09051]
[1725982178810,0.267509,57134.0,57133.0,0.09051]
[1725982179407,0.267509,57134.0,57133.0,0.08751]
[1725982180102,0.087513,57131.0,57130.0,0.88]
[1725982180303,0.087521,57127.0,57126.0,0.08752]
[1725982180503,0.267521,57127.0,57126.0,0.08752]
[1725982180706,0.267521,57127.0,57126.0,0.96752]
[1725982180707,0.267921,57127.0,57126.0,0.96752]
[1725982180912,0.267521,57127.0,57126.0,0.96752]
[1725982181415,0.0004,57131.0,57130.0,0.087515]
[1725982181609,0.0004,57131.0,57130.0,0.087915]
[1725982181810,0.0004,57131.0,57130.0,0.17543]
[1725982182009,0.0004,57131.0,57130.0,1.30055]
[1725982182212,0.3218,57141.0,57140.0,0.087499]
[1725982182409,0.5018,57141.0,57140.0,0.967899]
[1725982182610,0.18,57146.0,57140.0,0.8804]
[1725982182814,0.18,57146.0,57145.0,0.0004]
[1725982183012,0.18,57146.0,57145.0,0.087892]
[1725982183906,0.18,57146.0,57145.0,0.088892]
[1725982184106,0.18,57146.0,57145.0,0.0014]
[1725982184617,0.26749,57146.0,57145.0,0.0014]
[1725982184804,0.18,57146.0,57145.0,0.0014]
[1725982185006,0.18,57146.0,57145.0,0.088892]
[1725982186510,0.18,57146.0,57145.0,0.087892]
[1725982186813,0.26749,57146.0,57145.0,0.0004]
[1725982187808,0.18,57146.0,57145.0,0.0004]
[1725982188208,0.087477,57155.0,57145.0,0.0004]
[1725982188209,0.0041,57158.0,57145.0,1.30536]
[1725982188404,0.12231709,57163.0,57145.0,1.30536]
[1725982188405,0.10479838,57165.0,57157.0,0.087873]
[1725982188612,0.18,57168.0,57159.0,0.08787]
[1725982188613,0.10479838,57167.0,57159.0,0.08787]
[1725982188807,0.18,57168.0,57159.0,0.08747]
[1725982188808,0.10479838,57168.0,57159.0,0.08747]
[1725982189010,0.10479838,57170.0,57159.0,1.10314]
[1725982189304,0.0041,57173.0,57159.0,1.10314]
[1725982189811,0.091549,57173.0,57159.0,1.10314]
[1725982190208,0.091549,57173.0,57159.0,1.01567]
[1725982190209,0.10889838,57173.0,57159.0,1.01567]
[1725982190418,0.10479838,57172.0,57159.0,1.01567]
[1725982191006,0.087456,57169.0,57159.0,1.01767]
[1725982192115,0.087456,57169.0,57159.0,1.03006175]
[1725982192308,0.087458,57167.0,57159.0,1.03006175]
[1725982192508,0.087452,57171.0,57159.0,1.03006175]
[1725982192718,0.087454,57170.0,57159.0,1.03006175]
[1725982193913,0.0041,57173.0,57159.0,1.03006175]
[1725982193914,0.18,57166.0,57159.0,0.98186175]
[1725982194217,0.0041,57173.0,57159.0,0.10186175]
[1725982194218,0.087466,57162.0,57159.0,0.10186175]
[1725982194408,0.18,57163.0,57159.0,0.10186175]
[1725982194409,0.090269,57160.0,57159.0,0.10186175]
[1725982195017,0.0028,57160.0,57159.0,0.10186175]
[1725982196218,0.0028,57160.0,57159.0,0.98186175]
[1725982196812,0.0041,57173.0,57172.0,0.087451]
[1725982197013,0.087439,57180.0,57178.0,0.087441]
[1725982197214,0.087439,57180.0,57179.0,0.0008]
[1725982197418,0.087439,57180.0,57173.0,0.18]
[1725982197814,0.10479838,57185.0,57177.0,0.087442]
[1725982198021,0.087439,57180.0,57177.0,0.087442]
[1725982198222,0.087431,57185.0,57173.0,0.18]
[1725982198519,0.087431,57185.0,57177.0,0.087442]
[1725982198520,0.087439,57180.0,57177.0,0.087442]
[1725982198822,0.087439,57180.0,57179.0,0.08744]
[1725982199215,0.087442,57178.0,57173.0,0.18]
[1725982199521,0.087442,57178.0,57176.0,0.087444]
[1725982200020,0.087447,57174.0,57173.0,0.01333853]
[1725982200617,0.087447,57174.0,57173.0,0.01233853]
[1725982200812,0.087447,57174.0,57172.0,0.0008]
[1725982201006,0.049,57178.0,57174.0,0.087447]
[1725982201007,0.087445,57176.0,57174.0,0.087447]
[1725982201207,0.049,57178.0,57175.0,0.0008]
[1725982201421,0.087444,57176.0,57175.0,0.0008]
[1725982202817,0.087444,57176.0,57175.0,0.088246]
[1725982203212,0.087438,57180.0,57179.0,0.087438]
[1725982203621,0.087438,57180.0,57179.0,0.088238]
[1725982204008,0.087438,57180.0,57179.0,0.0008]
[1725982205023,0.087438,57180.0,57179.0,0.08824]
[1725982205526,0.087438,57180.0,57179.0,0.0008]
[1725982205719,0.0498,57186.0,57179.0,0.0008]
[1725982206021,0.442314,57180.0,57179.0,0.0008]
[1725982206223,0.442314,57180.0,57175.0,0.0018]
[1725982206224,0.087444,57176.0,57175.0,0.0018]
[1725982206817,0.087444,57176.0,57175.0,0.0008]
[1725982207424,0.267444,57176.0,57175.0,0.0008]
[1725982207919,0.18,57179.0,57175.0,0.0018]
[1725982208120,0.18,57183.0,57175.0,0.0018]
[1725982208323,0.087441,57179.0,57178.0,0.088241]
[1725982208623,0.18,57183.0,57179.0,0.08744]
[1725982208624,0.087438,57181.0,57179.0,0.08744]
[1725982208931,0.087438,57181.0,57180.0,0.0008]
[1725982209226,0.174876,57181.0,57180.0,0.0008]
[1725982209615,0.087438,57181.0,57180.0,0.0008]
[1725982210718,0.174876,57181.0,57180.0,0.0008]
[1725982211447,0.52468,57180.0,57159.0,0.0048]
[1725982211619,0.18,57163.0,57152.0,0.32118]
[1725982211920,0.087465,57163.0,57160.0,0.087467]
[1725982212115,0.18,57167.0,57155.0,0.18]
[1725982212314,0.0462,57166.0,57156.0,0.18]
[1725982212518,0.0462,57166.0,57160.0,0.087468]
[1725982212725,0.087466,57162.0,57161.0,0.087467]
[1725982213528,0.087459,57167.0,57164.0,0.087462]
[1725982213729,0.087459,57167.0,57166.0,0.0008]
[1725982214242,0.087459,57167.0,57166.0,0.08826]
[1725982215620,0.089459,57167.0,57166.0,0.08926]
[1725982216127,0.089459,57167.0,57166.0,0.0018]
[1725982217027,0.089459,57167.0,57166.0,0.01260219]
[1725982217324,0.089459,57167.0,57166.0,0.0018]
[1725982217525,0.002,57167.0,57166.0,0.08926]
[1725982217727,0.002,57167.0,57166.0,0.26926]
[1725982217923,0.002,57167.0,57166.0,0.08926]
[1725982218429,0.002,57167.0,57166.0,0.96926]
[1725982219023,0.087451,57172.0,57171.0,0.087452]
[1725982219227,0.11580603,57172.0,57171.0,0.088252]
[1725982219421,0.087451,57172.0,57171.0,0.088252]
[1725982219727,0.090643,57178.0,57171.0,0.088252]
[1725982219728,0.0032,57178.0,57177.0,0.087443]
[1725982219924,0.0032,57178.0,57177.0,0.088243]
[1725982220529,0.0032,57178.0,57177.0,0.175686]
[1725982220721,0.3218,57186.0,57185.0,0.087431]
[1725982220926,0.19222138,57190.0,57185.0,0.0008]
[1725982221127,0.0283459,57189.0,57185.0,0.0008]
[1725982221323,0.11567053,57192.0,57190.0,0.087422]
[1725982221529,0.02834562,57191.0,57190.0,0.087422]
[1725982221933,0.087427,57188.0,57186.0,0.087429]
[1725982222125,0.087426,57188.0,57186.0,0.087429]
[1725982223034,0.087428,57187.0,57186.0,0.087429]
[1725982223233,0.087429,57186.0,57185.0,0.0018]
[1725982223537,0.181,57189.0,57187.0,0.087427]
[1725982223725,0.001,57189.0,57188.0,0.088226]
[1725982223932,0.001,57189.0,57188.0,0.268226]
[1725982224136,0.8,57196.0,57195.0,0.087415]
[1725982224432,0.8,57196.0,57195.0,0.267415]
[1725982224636,0.087417,57195.0,57191.0,0.08742]
[1725982224932,0.087417,57194.0,57192.0,0.08742]
[1725982225428,0.087421,57191.0,57190.0,0.88]
[1725982225631,0.087421,57191.0,57188.0,0.01181025]
[1725982225632,0.087425,57189.0,57188.0,0.01181025]
[1725982226133,0.087425,57189.0,57181.0,0.087436]
[1725982226134,0.087429,57186.0,57181.0,0.087436]
[1725982226335,0.087429,57186.0,57179.0,0.2277]
[1725982226931,0.18,57191.0,57182.0,0.18]
[1725982227133,0.087426,57189.0,57188.0,0.087426]
[1725982227435,0.08742,57192.0,57186.0,0.18]
[1725982227632,0.08742,57192.0,57191.0,0.088221]
[1725982227934,0.88981401,57196.0,57195.0,0.087415]
[1725982228130,0.91575783,57196.0,57195.0,0.088215]
[1725982228330,0.887414,57196.0,57195.0,0.088215]
[1725982228733,0.8,57196.0,57195.0,0.088215]
[1725982230026,0.8,57196.0,57195.0,0.09890102]
[1725982230640,0.801,57196.0,57195.0,0.09990102]
[1725982230826,0.888414,57196.0,57195.0,0.0018]
[1725982231026,0.801,57196.0,57195.0,0.0018]
[1725982231339,0.801,57196.0,57195.0,0.089215]
[1725982231637,0.801,57196.0,57195.0,0.969215]
[1725982231845,0.0041,57210.0,57209.0,0.087394]
[1725982232135,0.4465171,57224.0,57209.0,0.087394]
[1725982232136,0.10479838,57221.0,57209.0,0.18]
[1725982232345,0.18,57221.0,57220.0,0.0008]
[1725982232537,0.087388,57213.0,57209.0,0.0008]
[1725982232839,0.087388,57213.0,57205.0,0.18]
[1725982233145,0.0041,57219.0,57205.0,0.18]
[1725982233334,0.087392,57211.0,57206.0,0.087398]
[1725982233526,0.18,57214.0,57205.0,0.18]
[1725982233730,0.267387,57214.0,57213.0,0.0008]
[1725982234544,0.18,57214.0,57213.0,0.0008]
[1725982234940,1.30436,57214.0,57209.0,0.001]
[1725982235137,0.087405,57202.0,57198.0,0.08741]
[1725982235435,0.18,57202.0,57198.0,0.01088043]
[1725982235635,0.087396,57208.0,57204.0,0.087401]
[1725982235831,0.087396,57208.0,57207.0,0.0008]
[1725982236030,0.2759,57209.0,57207.0,0.0008]
[1725982236235,0.2759,57209.0,57208.0,0.0008]
[1725982236442,0.0959,57209.0,57208.0,0.0008]
[1725982236636,0.08739,57212.0,57209.0,0.087394]
[1725982236843,0.08739,57212.0,57211.0,0.0008]
[1725982237738,0.26739,57212.0,57211.0,0.0008]
[1725982238039,0.26839,57212.0,57211.0,0.0018]
[1725982238246,0.181,57212.0,57211.0,0.0018]
[1725982238541,0.001,57212.0,57211.0,0.0018]
[1725982238847,0.3259,57226.0,57211.0,1.12516]
[1725982239045,0.18,57229.0,57225.0,0.0008]
[1725982239241,0.267363,57229.0,57228.0,0.0008]
[1725982239434,0.267363,57229.0,57225.0,0.0008]
[1725982239435,0.087366,57228.0,57225.0,0.8808]
[1725982239833,0.7282854,57251.0,57225.0,0.8808]
[1725982239834,0.18,57234.0,57225.0,0.8808]
[1725982240033,0.267362,57230.0,57225.0,0.97870432]
[1725982240242,0.267362,57230.0,57225.0,0.89133632]
[1725982240243,0.18,57230.0,57225.0,0.89133632]
[1725982240440,0.087363,57229.0,57225.0,0.89133632]
[1725982240645,0.25,57230.0,57227.0,0.087365]
[1725982240833,0.337362,57230.0,57229.0,0.0004]
[1725982241246,0.337362,57230.0,57211.0,0.001]
[1725982241247,1.3762941,57230.0,57218.0,0.08738]
[1725982241462,0.0004,57219.0,57218.0,0.08738]
[1725982241751,0.0004,57219.0,57218.0,0.96738]
[1725982242934,0.0004,57219.0,57218.0,0.08738]
[1725982243243,0.0004,57219.0,57218.0,0.09816633]
[1725982243537,0.0004,57219.0,57218.0,0.97816633]
[1725982243943,0.0004,57219.0,57218.0,0.97916633]
[1725982244832,0.0004,57219.0,57218.0,0.97816633]
[1725982246145,0.0004,57219.0,57218.0,0.97916633]
[1725982246543,0.0004,57219.0,57218.0,0.09916633]
[1725982248746,0.0004,57219.0,57218.0,0.01178633]
[1725982248945,0.087779,57219.0,57218.0,0.01178633]
[1725982249739,0.0004,57219.0,57218.0,0.09916633]
[1725982254142,0.0004,57219.0,57218.0,0.18654633]
[1725982254653,0.087367,57227.0,57218.0,1.13610633]
[1725982254953,0.0909,57229.0,57228.0,0.087365]
[1725982255143,0.0909,57229.0,57228.0,0.087765]
[1725982255447,0.178263,57229.0,57228.0,0.0004]
[1725982257344,0.178263,57229.0,57228.0,0.0014]
[1725982258046,0.178263,57229.0,57228.0,0.01208242]
[1725982258251,0.0909,57229.0,57228.0,0.088765]
[1725982258446,0.178263,57229.0,57228.0,0.088765]
[1725982258647,0.178263,57229.0,57228.0,0.0014]
[1725982259354,0.515626,57229.0,57228.0,0.0014]
[1725982260455,0.087388,57214.0,57212.0,0.88]
[1725982260660,0.087788,57213.0,57212.0,0.88]
[1725982260871,0.223676,57213.0,57212.0,0.88]
[1725982261058,0.087391,57212.0,57194.0,0.00895978]
[1725982261252,0.25,57202.0,57192.0,0.046]
[1725982261445,0.22018773,57212.0,57193.0,0.88]
[1725982261446,0.0004,57196.0,57193.0,0.88]
[1725982261652,0.087417,57194.0,57193.0,0.88]
[1725982261858,0.087423,57190.0,57181.0,0.25879106]
[1725982262065,0.0004,57182.0,57181.0,0.25]
[1725982262355,0.0004,57182.0,57181.0,0.88]
[1725982262951,0.0004,57182.0,57180.0,0.01059144]
[1725982263145,0.0004,57181.0,57174.0,0.087447]
[1725982263353,0.0004,57181.0,57173.0,0.25861272]
[1725982263354,0.0004,57181.0,57176.0,0.087444]
[1725982263553,0.0004,57181.0,57175.0,0.88]
[1725982263757,0.0004,57176.0,57175.0,0.88]
[1725982266656,0.0014,57176.0,57175.0,0.892]
[1725982267053,0.0004,57181.0,57180.0,0.087438]
[1725982267359,0.0974,57195.0,57180.0,0.52504]
[1725982267360,0.0968,57195.0,57180.0,0.52504]
[1725982267565,0.133016,57195.0,57185.0,0.25]
[1725982267760,0.0004,57196.0,57195.0,0.087415]
[1725982267966,0.0004,57196.0,57195.0,0.0004]
[1725982268259,0.0004,57196.0,57194.0,0.2504]
[1725982268260,0.0004,57196.0,57194.0,0.0004]
[1725982268459,0.0004,57195.0,57194.0,0.0004]
[1725982268663,0.0004,57195.0,57194.0,0.8804]
[1725982268860,0.0004,57195.0,57194.0,0.967817]
[1725982269167,0.0004,57195.0,57194.0,2.10331742]
[1725982271059,0.0014,57195.0,57194.0,2.11331742]
[1725982271455,0.0014,57195.0,57194.0,0.98879742]
[1725982272352,0.0014,57195.0,57194.0,0.90138042]
[1725982272651,0.0014,57195.0,57194.0,0.98879742]
[1725982272857,0.088815,57195.0,57194.0,0.90138042]
[1725982273262,0.087815,57195.0,57194.0,0.89138042]
[1725982273458,0.088815,57195.0,57194.0,0.90138042]
[1725982273654,0.338815,57195.0,57194.0,0.90138042]
[1725982273864,0.338815,57195.0,57194.0,1e-08]
[1725982273865,0.42623,57195.0,57194.0,1e-08]
[1725982274257,0.337815,57195.0,57186.0,0.01076206]
[1725982274570,0.087815,57195.0,57194.0,0.005]
[1725982274866,0.087415,57195.0,57194.0,0.005]
[1725982275862,0.337415,57195.0,57194.0,0.005]
[1725982276266,0.087421,57191.0,57190.0,0.01078998]
[1725982276472,0.087421,57191.0,57186.0,0.087429]
[1725982276764,0.087421,57191.0,57179.0,0.26072984]
[1725982276765,0.087821,57191.0,57179.0,0.26072984]
[1725982277058,0.087821,57191.0,57189.0,0.087424]
[1725982277269,0.0004,57191.0,57190.0,0.087423]
[1725982277762,0.0004,57191.0,57188.0,0.087426]
[1725982277964,0.0004,57189.0,57188.0,0.087426]
[1725982278465,0.087825,57189.0,57179.0,0.254]
[1725982278655,0.087825,57189.0,57186.0,0.087429]